[Event "1st Archibald 2019"]
[Site "Sochi"]
[Date "2019.05.13"]
[Round "2.9"]
[White "Bimiev, Ahmad"]
[Black "Stupak, Kirill"]
[Result "0-1"]
[ECO "A13"]
[WhiteElo "2196"]
[BlackElo "2551"]
[Annotator "ChessBase"]
[PlyCount "78"]
[EventDate "2019.05.12"]
[EventType "swiss"]
[EventCountry "RUS"]
[SourceTitle "playchess.com"]
[Source "ChessBase"]
[SourceQuality "1"]
[TimeControl "5400+30"]

1. c4 {[%emt 0:00:00]} g6 {[%emt 0:08:52]} 2. g3 {[%emt 0:00:00]} Bg7 {[%emt 0:00:00]} 3. Bg2 {[%emt 0:00:00]} e6 {[%emt 0:05:20]} 4. Nc3 {[%emt 0:00:22]} Ne7 {[%emt 0:00:34]} 5. d4 {[%emt 0:09:12]} d5 {[%emt 0:00:00]} 6. Nf3 {[%emt 0:00:16]} O-O {[%emt 0:00:30]} 7. cxd5 {[%emt 0:00:00]} exd5 {[%emt 0:00:00]} 8. O-O {[%emt 0:00:44]} Nbc6 {[%emt 0:01:00]} 9. a3 {[%emt 0:03:42]} Bg4 {[%emt 0:01:57]} 10. e3 {[%emt 0:00:00]} Qd7 {[%emt 0:00:51]} 11. b4 {[%emt 0:04:17]} Qf5 {[%emt 0:14:42]} 12. Nh4 {[%emt 0:05:17]} Qe6 {[%emt 0:03:04]} 13. f3 {[%emt 0:08:54]} Bh3 {[%emt 0:00:45]} 14. f4 {[%emt 0:00:20]} Bxg2 {[%emt 0:06:27]} 15. Kxg2 {[%emt 0:01:14]} Bf6 {[%emt 0:13:07]} 16. Nf3 {[%emt 0:04:02]} Nf5 {[%emt 0:01:24]} 17. Ne5 {[%emt 0:00:50]} Bxe5 {[%emt 0:07:22]} 18. fxe5 {[%emt 0:16:49]} f6 {[%emt 0:01:01]} 19. g4 {[%emt 0:06:29]} Nfe7 {[%emt 0:05:58]} 20. exf6 {[%emt 0:00:00]} Rxf6 {[%emt 0:00:09]} 21. Rxf6 {[%emt 0:01:12]} Qxf6 {[%emt 0:00:31]} 22. Qf3 {[%emt 0:00:00]} Qe6 {[%emt 0:00:56]} 23. Bd2 {[%emt 0:00:11]} Rf8 {[%emt 0:01:35]} 24. Qg3 {[%emt 0:00:40]} Nc8 {[%emt 0:01:40]} 25. Rf1 {[%emt 0:15:39]} Rxf1 {[%emt 0:01:06]} 26. Kxf1 {[%emt 0:00:00]} Nd6 {[%emt 0:00:00]} 27. Qf3 {[%emt 0:00:45]} Ne7 {[%emt 0:04:30]} 28. Ke2 {[%emt 0:01:46]} Ne4 {[%emt 0:03:23]} 29. b5 {[%emt 0:03:52]} a6 {[%emt 0:04:20]} 30. a4 {[%emt 0:02:28]} axb5 {[%emt 0:01:09]} 31. axb5 {[%emt 0:00:45]} Nc8 {[%emt 0:00:32]} 32. Na4 {[%emt 0:04:12]} Qd7 {[%emt 0:03:18]} 33. Nc5 {[%emt 0:09:52]} Qxb5+ {[%emt 0:04:36]} 34. Kd1 {[%emt 0:00:00]} Ncd6 {[%emt 0:01:42]} 35. Be1 {[%emt 0:02:07]} Nc4 {[%emt 0:03:05]} 36. Nxe4 {[%emt 0:01:09]} Qb1+ {[%emt 0:00:31]} 37. Ke2 {[%emt 0:00:05]} Qxe4 {[%emt 0:00:05]} 38. Qg3 {[%emt 0:00:43]} Qe7 {[%emt 0:01:37]} 39. Qg2 {[%emt 0:00:24]} Qxe3+ {[%emt 0:00:09]} 0-1

[Event "1st Archibald 2019"]
[Site "Sochi"]
[Date "2019.05.13"]
[Round "2.10"]
[White "Osipov, Aleksandr"]
[Black "Kotsur, Pavel"]
[Result "0-1"]
[ECO "E20"]
[WhiteElo "2024"]
[BlackElo "2527"]
[Annotator "ChessBase"]
[PlyCount "70"]
[EventDate "2019.05.12"]
[EventType "swiss"]
[EventCountry "RUS"]
[SourceTitle "playchess.com"]
[Source "ChessBase"]
[SourceQuality "1"]
[TimeControl "5400+30"]

1. d4 {[%emt 0:00:00]} e6 {[%emt 0:00:00]} 2. c4 {[%emt 0:00:00]} Nf6 {[%emt 0:00:00]} 3. Nc3 {[%emt 0:00:00]} Bb4 {[%emt 0:00:00]} 4. g3 {[%emt 0:00:29]} O-O {[%emt 0:01:17]} 5. Bg2 {[%emt 0:00:32]} d5 {[%emt 0:00:37]} 6. Nf3 {[%emt 0:00:21]} c6 {[%emt 0:06:23]} 7. O-O {[%emt 0:00:41]} b6 {[%emt 0:00:44]} 8. Bg5 {[%emt 0:06:54]} Bb7 {[%emt 0:22:11]} 9. Qa4 {[%emt 0:01:12]} a5 {[%emt 0:14:31]} 10. a3 {[%emt 0:07:47]} Be7 {[%emt 0:00:18]} 11. Ne5 {[%emt 0:03:06]} Nfd7 {[%emt 0:11:24]} 12. Bf4 {[%emt 0:14:13]} Nxe5 {[%emt 0:03:34]} 13. Bxe5 {[%emt 0:00:52]} Nd7 {[%emt 0:01:52]} 14. Bf4 {[%emt 0:00:05]} g5 {[%emt 0:02:57]} 15. Bd2 {[%emt 0:06:25]} f5 {[%emt 0:00:21]} 16. Rad1 {[%emt 0:18:47]} Qe8 {[%emt 0:03:35]} 17. Bc1 {[%emt 0:00:59]} Kh8 {[%emt 0:01:09]} 18. e4 {[%emt 0:06:09]} fxe4 {[%emt 0:02:52]} 19. f3 {[%emt 0:00:03]} b5 {[%emt 0:05:35]} 20. cxb5 {[%emt 0:01:45]} cxb5 {[%emt 0:00:08]} 21. Qb3 {[%emt 0:04:20]} exf3 {[%emt 0:01:19]} 22. Bxf3 {[%emt 0:00:00]} b4 {[%emt 0:00:47]} 23. Nb5 {[%emt 0:05:28]} Nc5 {[%emt 0:02:27]} 24. dxc5 {[%emt 0:00:35]} Qxb5 {[%emt 0:00:03]} 25. Kg2 {[%emt 0:00:17]} Qxc5 {[%emt 0:00:24]} 26. Be3 {[%emt 0:00:28]} Qd6 {[%emt 0:00:12]} 27. Kg1 {[%emt 0:02:41]} Rad8 {[%emt 0:04:39]} 28. Bg2 {[%emt 0:02:14]} Rxf1+ {[%emt 0:01:53]} 29. Rxf1 {[%emt 0:00:13]} Ba6 {[%emt 0:00:52]} 30. Rf7 {[%emt 0:00:30]} Kg8 {[%emt 0:00:37]} 31. Rf2 {[%emt 0:03:57]} Qe5 {[%emt 0:01:38]} 32. axb4 {[%emt 0:02:24]} axb4 {[%emt 0:00:41]} 33. Bb6 {[%emt 0:01:27]} Qe1+ {[%emt 0:01:27]} 34. Bf1 {[%emt 0:00:07]} Rf8 {[%emt 0:00:07]} 35. Rxf8+ {[%emt 0:00:21]} Bxf8 {[%emt 0:00:16]} 0-1

[Event "1st Archibald 2019"]
[Site "Sochi"]
[Date "2019.05.13"]
[Round "2.12"]
[White "Tsydypov, Zhamsaran"]
[Black "Najdin, Danil"]
[Result "1-0"]
[ECO "B18"]
[WhiteElo "2546"]
[BlackElo "2314"]
[Annotator "ChessBase"]
[PlyCount "51"]
[EventDate "2019.05.12"]
[EventType "swiss"]
[EventCountry "RUS"]
[SourceTitle "playchess.com"]
[Source "ChessBase"]
[SourceQuality "1"]
[TimeControl "5400+30"]

1. e4 {[%emt 0:04:46]} c6 {[%emt 0:00:00]} 2. d4 {[%emt 0:00:09]} d5 {[%emt 0:00:00]} 3. Nc3 {[%emt 0:00:21]} dxe4 {[%emt 0:00:30]} 4. Nxe4 {[%emt 0:00:05]} Bf5 {[%emt 0:00:00]} 5. Nc5 {[%emt 0:00:07]} e5 {[%emt 0:04:53]} 6. Nxb7 {[%emt 0:00:00]} Qxd4 {[%emt 0:16:01]} 7. Qxd4 {[%emt 0:03:42]} exd4 {[%emt 0:00:00]} 8. Nf3 {[%emt 0:02:47]} Bxc2 {[%emt 0:04:46]} 9. Nxd4 {[%emt 0:01:05]} Be4 {[%emt 0:00:05]} 10. f3 {[%emt 0:05:13]} Bd5 {[%emt 0:02:49]} 11. Bf4 {[%emt 0:00:07]} Nf6 {[%emt 0:04:54]} 12. O-O-O {[%emt 0:01:00]} Nh5 {[%emt 0:11:25]} 13. Be3 {[%emt 0:04:39]} Be7 {[%emt 0:14:02]} 14. Nb5 {[%emt 0:03:33]} Kd7 {[%emt 0:02:01]} 15. g4 {[%emt 0:01:16]} Rc8 {[%emt 0:07:46]} 16. gxh5 {[%emt 0:04:17]} cxb5+ {[%emt 0:00:38]} 17. Kb1 {[%emt 0:00:57]} Ke6 {[%emt 0:01:03]} 18. Bh3+ {[%emt 0:00:00]} f5 {[%emt 0:00:01]} 19. Rhe1 {[%emt 0:00:00]} Bb4 {[%emt 0:06:23]} 20. Bg5+ {[%emt 0:14:15]} Bxe1 {[%emt 0:01:30]} 21. Rxe1+ {[%emt 0:00:02]} Kd7 {[%emt 0:02:14]} 22. Bxf5+ {[%emt 0:00:09]} Kc7 {[%emt 0:09:20]} 23. Re7+ {[%emt 0:00:51]} Kb6 {[%emt 0:02:09]} 24. Be3+ {[%emt 0:03:27]} Ka6 {[%emt 0:00:00]} 25. Bxc8 {[%emt 0:00:37]} Nc6 {[%emt 0:00:00]} 26. Rc7 {[%emt 0:00:25]} 1-0

[Event "1st Archibald 2019"]
[Site "Sochi"]
[Date "2019.05.13"]
[Round "2.13"]
[White "Korneev, Oleg"]
[Black "Dashko, Andrey"]
[Result "1-0"]
[ECO "B42"]
[WhiteElo "2530"]
[BlackElo "2211"]
[Annotator "ChessBase"]
[PlyCount "58"]
[EventDate "2019.05.12"]
[EventType "swiss"]
[EventCountry "RUS"]
[SourceTitle "playchess.com"]
[Source "ChessBase"]
[SourceQuality "1"]
[TimeControl "5400+30"]

1. e4 {[%emt 0:07:31]} c5 {[%emt 0:00:00]} 2. Nf3 {[%emt 0:00:51]} e6 {[%emt 0:00:00]} 3. d4 {[%emt 0:00:00]} cxd4 {[%emt 0:00:00]} 4. Nxd4 {[%emt 0:00:00]} a6 {[%emt 0:00:00]} 5. Bd3 {[%emt 0:00:25]} Nf6 {[%emt 0:00:30]} 6. O-O {[%emt 0:00:05]} Qc7 {[%emt 0:00:06]} 7. Qe2 {[%emt 0:00:07]} d6 {[%emt 0:00:40]} 8. c4 {[%emt 0:00:09]} Be7 {[%emt 0:00:00]} 9. Nc3 {[%emt 0:00:00]} O-O {[%emt 0:00:41]} 10. Be3 {[%emt 0:02:34]} Bd7 {[%emt 0:09:48]} 11. Rac1 {[%emt 0:06:15]} Re8 {[%emt 0:06:26]} 12. f4 {[%emt 0:02:55]} Nc6 {[%emt 0:03:47]} 13. Nf3 {[%emt 0:17:45]} Bf8 {[%emt 0:09:54]} 14. Kh1 {[%emt 0:00:56]} Rac8 {[%emt 0:01:14]} 15. a3 {[%emt 0:21:56]} Qb8 {[%emt 0:09:58]} 16. b4 {[%emt 0:07:32]} g6 {[%emt 0:05:57]} 17. c5 {[%emt 0:14:23]} dxc5 {[%emt 0:06:37]} 18. bxc5 {[%emt 0:00:04]} Ng4 {[%emt 0:02:11]} 19. e5 {[%emt 0:00:17]} Nxe3 {[%emt 0:00:27]} 20. Qxe3 {[%emt 0:00:00]} Ne7 {[%emt 0:00:10]} 21. Ne4 {[%emt 0:00:00]} Nd5 {[%emt 0:00:42]} 22. Qd2 {[%emt 0:04:37]} Red8 {[%emt 0:05:11]} 23. Nd6 {[%emt 0:05:40]} Bxd6 {[%emt 0:03:46]} 24. cxd6 {[%emt 0:00:32]} Qa7 {[%emt 0:00:01]} 25. Be4 {[%emt 0:00:37]} Rc5 {[%emt 0:07:54]} 26. f5 {[%emt 0:01:53]} Rdc8 {[%emt 0:02:51]} 27. Bxd5 {[%emt 0:02:41]} exd5 {[%emt 0:03:32]} 28. Rxc5 {[%emt 0:00:16]} Qxc5 {[%emt 0:00:38]} 29. Qh6 {[%emt 0:00:49]} Qa7 {[%emt 0:03:40]} 1-0

[Event "1st Archibald 2019"]
[Site "Sochi"]
[Date "2019.05.13"]
[Round "2.14"]
[White "Solozhenkin, Evgeniy"]
[Black "Mikhailovsky, Vladimir"]
[Result "1/2-1/2"]
[ECO "A11"]
[WhiteElo "2441"]
[BlackElo "2180"]
[Annotator "ChessBase"]
[PlyCount "95"]
[EventDate "2019.05.12"]
[EventType "swiss"]
[EventCountry "RUS"]
[SourceTitle "playchess.com"]
[Source "ChessBase"]
[SourceQuality "1"]
[TimeControl "5400+30"]

1. Nf3 {[%emt 0:00:00]} Nf6 {[%emt 0:00:00]} 2. g3 {[%emt 0:00:00]} d5 {[%emt 0:00:00]} 3. Bg2 {[%emt 0:00:00]} Bg4 {[%emt 0:02:10]} 4. c4 {[%emt 0:05:37]} c6 {[%emt 0:01:29]} 5. O-O {[%emt 0:04:02]} Nbd7 {[%emt 0:00:51]} 6. cxd5 {[%emt 0:08:14]} cxd5 {[%emt 0:00:38]} 7. Nc3 {[%emt 0:00:04]} e6 {[%emt 0:00:24]} 8. Qb3 {[%emt 0:01:45]} Bxf3 {[%emt 0:05:19]} 9. Bxf3 {[%emt 0:00:12]} Nc5 {[%emt 0:00:22]} 10. Qb5+ {[%emt 0:02:26]} Qd7 {[%emt 0:10:46]} 11. Qxd7+ {[%emt 0:03:05]} Kxd7 {[%emt 0:04:25]} 12. d3 {[%emt 0:00:51]} Bd6 {[%emt 0:03:16]} 13. Be3 {[%emt 0:06:37]} Rhc8 {[%emt 0:05:31]} 14. Rfc1 {[%emt 0:00:19]} Ke7 {[%emt 0:07:45]} 15. b4 {[%emt 0:22:54]} Ncd7 {[%emt 0:03:02]} 16. Nb5 {[%emt 0:00:52]} Bxb4 {[%emt 0:01:26]} 17. Nxa7 {[%emt 0:02:37]} Rxc1+ {[%emt 0:02:09]} 18. Rxc1 {[%emt 0:00:01]} Bc5 {[%emt 0:13:33]} 19. Rxc5 {[%emt 0:07:36]} Rxa7 {[%emt 0:02:46]} 20. Rc2 {[%emt 0:01:30]} Ra4 {[%emt 0:03:09]} 21. Rb2 {[%emt 0:01:19]} Ne8 {[%emt 0:00:58]} 22. Bg5+ {[%emt 0:00:54]} f6 {[%emt 0:04:07]} 23. Bd2 {[%emt 0:00:29]} Kd6 {[%emt 0:05:01]} 24. Bb4+ {[%emt 0:08:13]} Kc7 {[%emt 0:01:07]} 25. e3 {[%emt 0:00:22]} Ne5 {[%emt 0:00:48]} 26. Be2 {[%emt 0:00:09]} Nd6 {[%emt 0:01:21]} 27. a3 {[%emt 0:04:57]} Ra7 {[%emt 0:03:42]} 28. h4 {[%emt 0:05:05]} g6 {[%emt 0:02:22]} 29. g4 {[%emt 0:00:55]} f5 {[%emt 0:01:08]} 30. g5 {[%emt 0:00:28]} Nb5 {[%emt 0:03:29]} 31. Bc5 {[%emt 0:00:48]} Ra5 {[%emt 0:01:26]} 32. d4 {[%emt 0:08:21]} Nc4 {[%emt 0:00:39]} 33. Bxc4 {[%emt 0:00:00]} dxc4 {[%emt 0:00:07]} 34. a4 {[%emt 0:00:04]} b6 {[%emt 0:01:58]} 35. axb5 {[%emt 0:00:24]} bxc5 {[%emt 0:00:35]} 36. dxc5 {[%emt 0:00:08]} c3 {[%emt 0:00:06]} 37. Rc2 {[%emt 0:00:37]} Rxb5 {[%emt 0:00:17]} 38. Rxc3 {[%emt 0:00:00]} Rb4 {[%emt 0:01:58]} 39. f4 {[%emt 0:00:18]} e5 {[%emt 0:00:05]} 40. Ra3 {[%emt 0:03:45]} exf4 {[%emt 0:00:08]} 41. exf4 {[%emt 0:00:12]} Rxf4 {[%emt 0:00:21]} 42. Ra7+ {[%emt 0:00:03]} Kc6 {[%emt 0:00:00]} 43. Rxh7 {[%emt 0:00:05]} Kxc5 {[%emt 0:00:07]} 44. Kg2 {[%emt 0:00:11]} Kd5 {[%emt 0:00:00]} 45. Kg3 {[%emt 0:01:34]} Ra4 {[%emt 0:00:17]} 46. Rd7+ {[%emt 0:00:44]} Ke5 {[%emt 0:00:08]} 47. Re7+ {[%emt 0:00:36]} Kd5 {[%emt 0:00:07]} 48. Rd7+ {[%emt 0:00:25]} 1/2-1/2

[Event "1st Archibald 2019"]
[Site "Sochi"]
[Date "2019.05.13"]
[Round "2.15"]
[White "Zakaryan, David"]
[Black "Khudyakov, Stanislav"]
[Result "1-0"]
[ECO "C16"]
[WhiteElo "2350"]
[BlackElo "2086"]
[Annotator "ChessBase"]
[PlyCount "111"]
[EventDate "2019.05.12"]
[EventType "swiss"]
[EventCountry "RUS"]
[SourceTitle "playchess.com"]
[Source "ChessBase"]
[SourceQuality "1"]
[TimeControl "5400+30"]

1. e4 {[%emt 0:00:00]} e6 {[%emt 0:00:00]} 2. d4 {[%emt 0:00:00]} d5 {[%emt 0:00:00]} 3. Nc3 {[%emt 0:00:00]} Bb4 {[%emt 0:00:00]} 4. e5 {[%emt 0:00:00]} Qd7 {[%emt 0:00:00]} 5. f4 {[%emt 0:01:03]} b6 {[%emt 0:01:06]} 6. Nf3 {[%emt 0:00:09]} Ba6 {[%emt 0:00:25]} 7. Bxa6 {[%emt 0:00:14]} Nxa6 {[%emt 0:00:00]} 8. Qe2 {[%emt 0:00:21]} Nb8 {[%emt 0:00:18]} 9. O-O {[%emt 0:00:00]} g6 {[%emt 0:09:41]} 10. Nd1 {[%emt 0:00:08]} h5 {[%emt 0:00:42]} 11. Ne3 {[%emt 0:01:12]} Nh6 {[%emt 0:01:34]} 12. c4 {[%emt 0:00:56]} c6 {[%emt 0:03:45]} 13. b3 {[%emt 0:02:23]} Nf5 {[%emt 0:10:25]} 14. Nxf5 {[%emt 0:00:00]} gxf5 {[%emt 0:01:12]} 15. Be3 {[%emt 0:00:00]} Be7 {[%emt 0:00:26]} 16. Rac1 {[%emt 0:00:39]} a5 {[%emt 0:00:40]} 17. Ng5 {[%emt 0:02:18]} Na6 {[%emt 0:10:48]} 18. Rf3 {[%emt 0:00:12]} dxc4 {[%emt 0:04:38]} 19. bxc4 {[%emt 0:08:09]} c5 {[%emt 0:09:13]} 20. d5 {[%emt 0:00:01]} Bxg5 {[%emt 0:00:15]} 21. fxg5 {[%emt 0:00:44]} O-O-O {[%emt 0:01:37]} 22. Rb1 {[%emt 0:00:46]} Kb7 {[%emt 0:01:36]} 23. d6 {[%emt 0:00:27]} Qc6 {[%emt 0:03:01]} 24. Bd2 {[%emt 0:00:00]} Ka7 {[%emt 0:00:29]} 25. Rb5 {[%emt 0:05:12]} Rb8 {[%emt 0:05:15]} 26. a3 {[%emt 0:00:29]} h4 {[%emt 0:00:56]} 27. h3 {[%emt 0:00:00]} Rhg8 {[%emt 0:09:55]} 28. Rfb3 {[%emt 0:01:56]} Rg6 {[%emt 0:02:02]} 29. Qf3 {[%emt 0:02:02]} Qxf3 {[%emt 0:00:06]} 30. Rxf3 {[%emt 0:01:46]} Rgg8 {[%emt 0:00:03]} 31. Rfb3 {[%emt 0:00:29]} a4 {[%emt 0:00:06]} 32. Rb1 {[%emt 0:00:25]} Rgd8 {[%emt 0:02:00]} 33. Kf2 {[%emt 0:00:36]} Rd7 {[%emt 0:00:12]} 34. g3 {[%emt 0:00:56]} hxg3+ {[%emt 0:01:00]} 35. Kxg3 {[%emt 0:00:00]} Rbb7 {[%emt 0:00:29]} 36. h4 {[%emt 0:01:02]} Nb8 {[%emt 0:00:57]} 37. h5 {[%emt 0:01:31]} Nc6 {[%emt 0:00:00]} 38. Bc3 {[%emt 0:00:00]} Rd8 {[%emt 0:00:47]} 39. Kf4 {[%emt 0:00:43]} Ka6 {[%emt 0:00:08]} 40. R5b2 {[%emt 0:00:56]} Rh8 {[%emt 0:00:59]} 41. h6 {[%emt 0:00:02]} Nb8 {[%emt 0:06:01]} 42. Rg1 {[%emt 0:00:44]} Nd7 {[%emt 0:00:57]} 43. g6 {[%emt 0:02:44]} fxg6 {[%emt 0:00:49]} 44. Rxg6 {[%emt 0:00:02]} Nf8 {[%emt 0:00:57]} 45. Rf6 {[%emt 0:00:28]} Rg8 {[%emt 0:00:00]} 46. Kf3 {[%emt 0:00:53]} Nh7 {[%emt 0:00:16]} 47. Rg2 {[%emt 0:02:41]} Rxg2 {[%emt 0:01:09]} 48. Kxg2 {[%emt 0:00:00]} Nxf6 {[%emt 0:00:08]} 49. exf6 {[%emt 0:00:00]} b5 {[%emt 0:02:16]} 50. Kf3 {[%emt 0:04:07]} Kb6 {[%emt 0:08:09]} 51. Kf4 {[%emt 0:03:09]} Kc6 {[%emt 0:00:04]} 52. Kg5 {[%emt 0:10:09]} b4 {[%emt 0:01:52]} 53. Be5 {[%emt 0:00:15]} b3 {[%emt 0:01:09]} 54. Kg6 {[%emt 0:03:40]} f4 {[%emt 0:04:38]} 55. h7 {[%emt 0:00:34]} Rb8 {[%emt 0:00:00]} 56. f7 {[%emt 0:00:00]} 1-0

[Event "1st Archibald 2019"]
[Site "Sochi"]
[Date "2019.05.13"]
[Round "2.17"]
[White "Novikov, Evgenij"]
[Black "Guseva, Marina"]
[Result "0-1"]
[ECO "D00"]
[WhiteElo "2148"]
[BlackElo "2402"]
[Annotator "ChessBase"]
[PlyCount "150"]
[EventDate "2019.05.12"]
[EventType "swiss"]
[EventCountry "RUS"]
[SourceTitle "playchess.com"]
[Source "ChessBase"]
[SourceQuality "1"]
[TimeControl "5400+30"]

1. d4 {[%emt 0:00:00]} d5 {[%emt 0:00:04]} 2. Bf4 {[%emt 0:00:21]} Nf6 {[%emt 0:00:06]} 3. e3 {[%emt 0:00:20]} c5 {[%emt 0:00:06]} 4. c3 {[%emt 0:00:13]} Nc6 {[%emt 0:00:05]} 5. Nd2 {[%emt 0:00:33]} cxd4 {[%emt 0:01:03]} 6. exd4 {[%emt 0:00:06]} Bf5 {[%emt 0:00:05]} 7. Ngf3 {[%emt 0:01:30]} e6 {[%emt 0:00:05]} 8. Be2 {[%emt 0:00:29]} Bd6 {[%emt 0:00:09]} 9. Bxd6 {[%emt 0:01:47]} Qxd6 {[%emt 0:00:05]} 10. Nh4 {[%emt 0:00:07]} Bg6 {[%emt 0:00:04]} 11. O-O {[%emt 0:00:36]} O-O {[%emt 0:00:08]} 12. Nxg6 {[%emt 0:00:30]} hxg6 {[%emt 0:00:03]} 13. Bd3 {[%emt 0:00:20]} Rab8 {[%emt 0:00:31]} 14. Qe2 {[%emt 0:00:28]} a6 {[%emt 0:03:28]} 15. f4 {[%emt 0:05:40]} Rfc8 {[%emt 0:01:43]} 16. Nf3 {[%emt 0:08:27]} b5 {[%emt 0:26:41]} 17. a3 {[%emt 0:02:49]} Ne7 {[%emt 0:02:54]} 18. Ne5 {[%emt 0:03:30]} Qb6 {[%emt 0:00:06]} 19. g4 {[%emt 0:02:40]} Rc7 {[%emt 0:00:59]} 20. h4 {[%emt 0:04:02]} a5 {[%emt 0:02:09]} 21. h5 {[%emt 0:02:29]} gxh5 {[%emt 0:01:00]} 22. g5 {[%emt 0:00:49]} Ne4 {[%emt 0:00:51]} 23. Qxh5 {[%emt 0:01:19]} Nf5 {[%emt 0:06:53]} 24. g6 {[%emt 0:07:19]} f6 {[%emt 0:17:35]} 25. Nf3 {[%emt 0:07:40]} Nh6 {[%emt 0:02:11]} 26. Rfe1 {[%emt 0:03:16]} Qc6 {[%emt 0:02:01]} 27. Rac1 {[%emt 0:05:22]} Re7 {[%emt 0:02:49]} 28. b3 {[%emt 0:04:53]} Nxc3 {[%emt 0:09:57]} 29. b4 {[%emt 0:14:08]} axb4 {[%emt 0:00:05]} 30. axb4 {[%emt 0:00:05]} Rc8 {[%emt 0:02:08]} 31. Rc2 {[%emt 0:09:07]} Qd6 {[%emt 0:03:29]} 32. Rec1 {[%emt 0:00:04]} Rec7 {[%emt 0:00:09]} 33. Qh2 {[%emt 0:00:46]} Kf8 {[%emt 0:03:01]} 34. Qd2 {[%emt 0:01:44]} Ne4 {[%emt 0:00:53]} 35. Qe2 {[%emt 0:02:45]} Qxf4 {[%emt 0:04:08]} 36. Rxc7 {[%emt 0:01:34]} Rxc7 {[%emt 0:00:07]} 37. Rxc7 {[%emt 0:00:03]} Qxc7 {[%emt 0:02:15]} 38. Bxe4 {[%emt 0:00:17]} dxe4 {[%emt 0:01:02]} 39. Qxe4 {[%emt 0:00:03]} Qd7 {[%emt 0:02:05]} 40. Qa8+ {[%emt 0:02:38]} Qe8 {[%emt 0:01:05]} 41. Qe4 {[%emt 0:00:54]} Nf5 {[%emt 0:03:02]} 42. Qg4 {[%emt 0:02:33]} Qc6 {[%emt 0:00:28]} 43. Qf4 {[%emt 0:00:30]} Qd6 {[%emt 0:02:14]} 44. Qe4 {[%emt 0:00:43]} Ke7 {[%emt 0:00:59]} 45. Qb7+ {[%emt 0:00:14]} Qd7 {[%emt 0:00:03]} 46. Qb6 {[%emt 0:00:23]} Nd6 {[%emt 0:00:28]} 47. Qc5 {[%emt 0:00:45]} Qc8 {[%emt 0:00:55]} 48. Kg2 {[%emt 0:01:07]} Qb7 {[%emt 0:00:24]} 49. d5 {[%emt 0:00:59]} Qxd5 {[%emt 0:00:36]} 50. Qc7+ {[%emt 0:02:35]} Kf8 {[%emt 0:00:04]} 51. Qd7 {[%emt 0:00:12]} f5 {[%emt 0:00:41]} 52. Kh2 {[%emt 0:01:42]} Qa2+ {[%emt 0:00:53]} 53. Kh3 {[%emt 0:00:43]} Qd5 {[%emt 0:00:40]} 54. Kh2 {[%emt 0:00:18]} Qa2+ {[%emt 0:00:32]} 55. Kh3 {[%emt 0:00:06]} Qa6 {[%emt 0:00:29]} 56. Qxe6 {[%emt 0:01:04]} Qc6 {[%emt 0:00:05]} 57. Kh2 {[%emt 0:01:49]} Qc2+ {[%emt 0:00:39]} 58. Kg1 {[%emt 0:00:28]} Qb1+ {[%emt 0:00:13]} 59. Kg2 {[%emt 0:00:28]} Qxb4 {[%emt 0:00:50]} 60. Ne5 {[%emt 0:00:13]} Qd2+ {[%emt 0:00:17]} 61. Kg1 {[%emt 0:00:33]} Qg5+ {[%emt 0:00:21]} 62. Kf1 {[%emt 0:00:07]} Qe7 {[%emt 0:00:30]} 63. Qd5 {[%emt 0:00:24]} b4 {[%emt 0:00:59]} 64. Qa8+ {[%emt 0:01:07]} Qe8 {[%emt 0:00:19]} 65. Qd5 {[%emt 0:00:16]} Qb5+ {[%emt 0:00:17]} 66. Qxb5 {[%emt 0:00:23]} Nxb5 {[%emt 0:00:03]} 67. Ke2 {[%emt 0:00:30]} b3 {[%emt 0:00:34]} 68. Kd2 {[%emt 0:00:48]} Ke7 {[%emt 0:00:09]} 69. Nc6+ {[%emt 0:00:25]} Kf6 {[%emt 0:00:05]} 70. Na5 {[%emt 0:00:15]} Nd4 {[%emt 0:01:05]} 71. Kc3 {[%emt 0:00:06]} Kxg6 {[%emt 0:01:11]} 72. Nc4 {[%emt 0:00:05]} Ne6 {[%emt 0:00:20]} 73. Nd2 {[%emt 0:00:16]} Kg5 {[%emt 0:00:10]} 74. Nxb3 {[%emt 0:00:06]} Kf4 {[%emt 0:00:05]} 75. Kd2 {[%emt 0:00:11]} g5 {[%emt 0:00:09]} 0-1

[Event "1st Archibald 2019"]
[Site "Sochi"]
[Date "2019.05.13"]
[Round "2.18"]
[White "Ufimtsev, Egor"]
[Black "Solozhenkina, Elizaveta"]
[Result "0-1"]
[ECO "A37"]
[WhiteElo "2101"]
[BlackElo "2329"]
[Annotator "ChessBase"]
[PlyCount "75"]
[EventDate "2019.05.12"]
[EventType "swiss"]
[EventCountry "RUS"]
[SourceTitle "playchess.com"]
[Source "ChessBase"]
[SourceQuality "1"]
[TimeControl "5400+30"]

1. c4 {[%emt 0:00:00]} c5 {[%emt 0:00:06]} 2. Nf3 {[%emt 0:00:16]} Nc6 {[%emt 0:00:12]} 3. Nc3 {[%emt 0:06:27]} e5 {[%emt 0:00:12]} 4. g3 {[%emt 0:04:46]} g6 {[%emt 0:01:04]} 5. Bg2 {[%emt 0:00:03]} Bg7 {[%emt 0:00:08]} 6. O-O {[%emt 0:00:03]} Nge7 {[%emt 0:00:08]} 7. Ne1 {[%emt 0:00:15]} O-O {[%emt 0:00:24]} 8. Nc2 {[%emt 0:00:04]} d6 {[%emt 0:00:54]} 9. Ne3 {[%emt 0:00:15]} Be6 {[%emt 0:04:55]} 10. Ned5 {[%emt 0:03:21]} Rb8 {[%emt 0:00:51]} 11. d3 {[%emt 0:31:22]} a6 {[%emt 0:05:24]} 12. a4 {[%emt 0:00:04]} h6 {[%emt 0:09:36]} 13. Rb1 {[%emt 0:02:51]} Nb4 {[%emt 0:03:11]} 14. Nxb4 {[%emt 0:16:47]} cxb4 {[%emt 0:00:06]} 15. Nd5 {[%emt 0:00:07]} b5 {[%emt 0:13:19]} 16. Nxe7+ {[%emt 0:06:21]} Qxe7 {[%emt 0:00:17]} 17. axb5 {[%emt 0:00:15]} axb5 {[%emt 0:00:06]} 18. b3 {[%emt 0:01:46]} bxc4 {[%emt 0:05:43]} 19. bxc4 {[%emt 0:02:44]} Rfd8 {[%emt 0:01:15]} 20. Qb3 {[%emt 0:04:38]} Qd7 {[%emt 0:19:54]} 21. Bd2 {[%emt 0:01:06]} Bf8 {[%emt 0:00:25]} 22. Bd5 {[%emt 0:01:16]} Bxd5 {[%emt 0:09:38]} 23. cxd5 {[%emt 0:00:03]} Rb5 {[%emt 0:00:25]} 24. Rfc1 {[%emt 0:05:09]} Rdb8 {[%emt 0:02:02]} 25. Kg2 {[%emt 0:03:04]} Kg7 {[%emt 0:01:12]} 26. Rc6 {[%emt 0:00:39]} Be7 {[%emt 0:01:07]} 27. e4 {[%emt 0:02:17]} Bg5 {[%emt 0:03:01]} 28. Bxg5 {[%emt 0:03:04]} hxg5 {[%emt 0:00:02]} 29. Rbc1 {[%emt 0:00:38]} Rh8 {[%emt 0:02:54]} 30. Rh1 {[%emt 0:00:03]} Qh3+ {[%emt 0:01:15]} 31. Kg1 {[%emt 0:00:07]} Ra8 {[%emt 0:00:50]} 32. Rc1 {[%emt 0:01:37]} Ra3 {[%emt 0:00:55]} 33. Qb2 {[%emt 0:00:18]} Rb7 {[%emt 0:05:18]} 34. Rd1 {[%emt 0:01:10]} Rc3 {[%emt 0:02:55]} 35. Qe2 {[%emt 0:02:48]} b3 {[%emt 0:01:08]} 36. Qf1 {[%emt 0:00:23]} g4 {[%emt 0:00:18]} 37. f3 {[%emt 0:00:50]} Rc2 {[%emt 0:00:35]} 38. Qe1 {[%emt 0:00:20]} 0-1